bitfinex/quotes_BTCUSD_20240703
["timestamp","ask_amount","ask_price","bid_price","bid_amount"]
[1720035017363,2.3606677,60045.0,60044.0,0.00834]
[1720035017567,2.3606677,60045.0,60044.0,0.00934]
[1720035017568,2.3616677,60045.0,60044.0,0.00934]
[1720035017763,2.3616677,60045.0,60044.0,0.00834]
[1720035017976,2.0551061,60044.0,60043.0,0.00834]
[1720035018180,2.07353933,60044.0,60043.0,0.00834]
[1720035018382,2.09841878,60044.0,60043.0,0.00834]
[1720035019020,2.07353933,60044.0,60043.0,0.00834]
[1720035019240,2.07353933,60044.0,60031.0,0.00834]
[1720035019241,0.4697721,60032.0,60031.0,0.00834]
[1720035019450,1.5552271,60032.0,60031.0,0.00834]
[1720035019646,1.5551271,60032.0,60031.0,0.00834]
[1720035020273,1.8882821,60032.0,60031.0,0.00834]
[1720035020464,1.9182821,60032.0,60031.0,0.00834]
[1720035021021,2.2513371,60032.0,60031.0,0.00834]
[1720035021285,2.2513371,60032.0,60031.0,0.00934]
[1720035021286,2.2523371,60032.0,60031.0,0.00934]
[1720035021486,2.32878366,60032.0,60031.0,0.00834]
[1720035021949,2.32978366,60032.0,60031.0,0.00934]
[1720035022159,2.32878366,60032.0,60031.0,0.01734]
[1720035022576,2.32868366,60032.0,60031.0,0.00934]
[1720035022984,2.33268366,60032.0,60031.0,0.00934]
[1720035023407,1.77762866,60032.0,60031.0,0.00934]
[1720035023534,1.96952866,60032.0,60031.0,0.00934]
[1720035023738,1.91865815,60032.0,60031.0,0.00934]
[1720035024163,1.91465815,60032.0,60031.0,0.00934]
[1720035024320,1.91465815,60032.0,60031.0,0.00834]
[1720035024321,1.91365815,60032.0,60031.0,0.00834]
[1720035024526,1.9209821,60032.0,60031.0,0.00834]
[1720035024822,1.3710271,60032.0,60031.0,0.00834]
[1720035025038,1.5549271,60032.0,60031.0,0.00834]
[1720035025243,1.5549271,60032.0,60031.0,0.01134]
[1720035025445,0.8642951,60032.0,60031.0,0.01234]
[1720035025667,1.0551951,60032.0,60031.0,0.01144]
[1720035025869,1.0551951,60032.0,60031.0,0.00844]
[1720035025870,0.8632951,60032.0,60031.0,0.00844]
[1720035026069,0.8632951,60032.0,60031.0,0.1688388]
[1720035026070,0.5137,60032.0,60031.0,0.1688388]
[1720035026270,0.6167951,60032.0,60031.0,0.1688388]
[1720035026473,0.6168951,60032.0,60031.0,0.1688388]
[1720035027059,0.6168951,60032.0,60031.0,0.1698388]
[1720035027301,0.5138,60032.0,60031.0,0.1698388]
[1720035027506,0.5138,60032.0,60031.0,0.1688388]
[1720035027714,0.2009,60032.0,60031.0,0.1698388]
[1720035028587,0.2009,60032.0,60031.0,0.1748388]
[1720035029001,0.2009,60032.0,60031.0,0.1698388]
[1720035029319,0.2602,60032.0,60031.0,0.1698388]
[1720035029520,0.2602,60032.0,60031.0,0.1788388]
[1720035029720,0.3039951,60032.0,60031.0,0.1788388]
[1720035030377,0.8037271,60032.0,60031.0,0.01854]
[1720035031129,0.4705721,60032.0,60031.0,0.01854]
[1720035031324,0.3039951,60032.0,60031.0,0.01854]
[1720035031984,0.8037271,60032.0,60031.0,0.01854]
[1720035033454,0.3039951,60032.0,60031.0,0.01854]
[1720035033878,0.3029951,60032.0,60031.0,0.01754]
[1720035034282,0.0012,60032.0,60031.0,0.1778388]
[1720035034487,0.0002,60032.0,60031.0,1.2557408]
[1720035034691,0.0002,60032.0,60031.0,0.9455798]
[1720035034950,0.0012,60032.0,60031.0,1.2797408]
[1720035035120,0.0012,60032.0,60031.0,1.2707408]
[1720035035321,0.0012,60032.0,60031.0,1.2807408]
[1720035035526,0.0022,60032.0,60031.0,1.2907408]
[1720035035731,0.0012,60032.0,60031.0,2.1934667]
[1720035036071,0.0012,60032.0,60031.0,2.3074667]
[1720035037333,0.0022,60032.0,60031.0,2.3034667]
[1720035037678,0.0002,60032.0,60031.0,2.2934667]
[1720035037898,0.0002,60032.0,60031.0,2.3034667]
[1720035038124,0.0012,60032.0,60031.0,2.3034667]
[1720035038322,0.0012,60032.0,60031.0,2.3174667]
[1720035038732,0.0002,60032.0,60031.0,2.3074667]
[1720035038932,0.0002,60032.0,60031.0,2.2934667]
[1720035039327,0.0002,60032.0,60031.0,2.6406277]
[1720035039487,0.0012,60032.0,60031.0,2.6506277]
[1720035041775,0.00212401,60032.0,60031.0,2.6506277]
[1720035042152,0.00212401,60032.0,60031.0,2.37014812]
[1720035042359,0.00212401,60032.0,60031.0,2.03698712]
[1720035042989,0.00212401,60032.0,60031.0,2.33698712]
[1720035043687,0.00212401,60032.0,60031.0,2.03698712]
[1720035043896,0.00212401,60032.0,60031.0,1.74692222]
[1720035044097,0.00212401,60032.0,60031.0,1.41426122]
[1720035046016,0.00212401,60032.0,60031.0,1.78080222]
[1720035046744,0.00212401,60032.0,60031.0,2.30362712]
[1720035047195,0.48093494,60047.0,60045.0,0.16654]
[1720035047565,0.48093494,60047.0,60046.0,0.1602988]
[1720035047872,0.3127,60051.0,60047.0,0.0005]
[1720035048017,0.13945582,60056.0,60049.0,0.499591]
[1720035048018,0.50735092,60056.0,60049.0,0.499591]
[1720035048208,0.1997,60054.0,60049.0,0.6828898]
[1720035048408,0.1030951,60053.0,60049.0,0.3498288]
[1720035049645,0.0437951,60053.0,60049.0,0.6948898]
[1720035049846,0.0437951,60053.0,60049.0,0.3618288]
[1720035050106,0.1030951,60053.0,60049.0,0.3617288]
[1720035050513,0.1030951,60053.0,60049.0,0.1950988]
[1720035050514,0.9505169,60050.0,60049.0,0.1950988]
[1720035050720,0.9505169,60050.0,60049.0,0.1860988]
[1720035051121,0.9505169,60050.0,60049.0,0.1740988]
[1720035051341,0.9505169,60050.0,60049.0,0.1600988]
[1720035051545,0.994312,60050.0,60049.0,0.1880988]
[1720035051717,0.994312,60050.0,60049.0,0.1740988]
[1720035053536,0.994312,60050.0,60049.0,0.1880988]
[1720035053739,0.994312,60050.0,60049.0,0.1879988]
[1720035054118,0.935012,60050.0,60049.0,0.1879988]
[1720035057075,0.8912169,60050.0,60049.0,0.7106898]
[1720035057668,0.8913169,60050.0,60049.0,0.7106898]
[1720035057850,0.8913169,60050.0,60049.0,1.0437508]
[1720035058049,0.8913169,60050.0,60049.0,1.0436508]
[1720035058457,0.8913169,60050.0,60049.0,1.0441508]
[1720035059574,0.8913169,60050.0,60049.0,1.3772118]
[1720035060503,0.8913169,60050.0,60049.0,2.3900728]
[1720035060701,0.8913169,60050.0,60049.0,2.6900728]
[1720035061224,0.8913169,60050.0,60049.0,2.6760728]
[1720035061421,0.8913169,60050.0,60049.0,2.9656577]
[1720035061422,0.85759517,60050.0,60049.0,2.9656577]
[1720035061624,0.85759517,60050.0,60049.0,2.9796577]
[1720035061995,0.85759517,60050.0,60049.0,2.98500902]
[1720035062203,0.85759517,60050.0,60049.0,2.99900902]
[1720035062428,0.85759517,60050.0,60049.0,2.98500902]
[1720035063304,0.85759517,60050.0,60049.0,2.99900902]
[1720035063521,0.76711517,60050.0,60049.0,3.61027002]
[1720035063725,0.76711517,60050.0,60049.0,3.74865752]
[1720035063726,0.76721517,60050.0,60049.0,3.74865752]
[1720035064069,0.76721517,60050.0,60049.0,3.76265752]
[1720035064418,0.76721517,60050.0,60049.0,3.74865752]
[1720035064540,0.76721517,60050.0,60049.0,3.76265752]
[1720035064738,0.76721517,60050.0,60049.0,3.76265584]
[1720035064994,0.76721517,60050.0,60049.0,3.74865584]
[1720035065400,0.71213717,60050.0,60049.0,3.76265584]
[1720035065900,0.58501659,60050.0,60049.0,3.74865584]
[1720035066458,0.58501659,60050.0,60049.0,3.76265584]
[1720035067047,0.475331,60050.0,60049.0,3.76265584]
[1720035067288,0.45618425,60050.0,60049.0,3.62437002]
[1720035067508,0.45618425,60050.0,60049.0,3.76274613]
[1720035067703,0.45618425,60050.0,60049.0,3.76274579]
[1720035068251,0.45618425,60050.0,60049.0,3.57084579]
[1720035069873,0.45618425,60050.0,60049.0,3.43247002]
[1720035070002,0.45618425,60050.0,60049.0,3.57085192]
[1720035070203,0.30511745,60050.0,60049.0,3.57085192]
[1720035070415,0.30511745,60050.0,60049.0,3.57084593]
[1720035070641,0.26811745,60050.0,60049.0,3.57084593]
[1720035071421,0.11692354,60050.0,60049.0,3.57084593]
[1720035071901,0.11692354,60050.0,60049.0,3.76274593]
[1720035073671,0.08015582,60071.0,60070.0,0.0005]
[1720035073849,0.316,60080.0,60078.0,0.16645]
[1720035074042,0.316,60080.0,60078.0,0.3267488]
[1720035074303,0.316,60080.0,60079.0,0.166447]
[1720035074509,0.316,60080.0,60079.0,0.3497458]
[1720035074699,0.3753,60080.0,60079.0,0.1832988]
[1720035075301,0.316,60080.0,60079.0,0.1832988]
[1720035075558,0.316,60080.0,60079.0,0.3497458]
[1720035075708,0.316,60080.0,60079.0,0.6826408]
[1720035075910,0.2646,60081.0,60079.0,0.6826408]
[1720035075911,0.2646,60081.0,60080.0,0.166444]
[1720035076115,0.08015582,60084.0,60083.0,0.499308]
[1720035076322,0.08015582,60084.0,60083.0,0.9929788]
[1720035076691,0.08015582,60084.0,60083.0,1.0159788]
[1720035076892,0.13945582,60091.0,60083.0,1.0159788]
[1720035076893,0.7803,60090.0,60086.0,0.0005]
[1720035077093,0.7803,60090.0,60089.0,0.166419]
[1720035077293,0.7803,60090.0,60089.0,0.3267178]
[1720035077492,0.7803,60090.0,60089.0,0.3266178]
[1720035077689,0.7803,60090.0,60089.0,0.6824568]
[1720035078089,0.5806,60090.0,60089.0,0.6824568]
[1720035078294,0.20061301,60092.0,60091.0,0.499242]
[1720035078489,0.52451301,60092.0,60091.0,0.1602988]
[1720035078690,0.52451301,60092.0,60091.0,0.1832988]
[1720035079111,0.46521301,60092.0,60091.0,0.3497128]
[1720035079680,0.52451301,60092.0,60091.0,0.1832988]
[1720035079900,0.77471301,60092.0,60091.0,0.1602988]
[1720035080068,0.77471301,60092.0,60091.0,0.1872988]
[1720035080476,0.77471301,60092.0,60091.0,0.1742988]
[1720035080662,0.83401301,60092.0,60091.0,0.1742988]
[1720035081039,0.77471301,60092.0,60091.0,0.1742988]
[1720035081445,0.83401301,60092.0,60091.0,0.1742988]
[1720035081839,0.83401301,60092.0,60091.0,0.1882988]
[1720035082045,0.83401301,60092.0,60091.0,0.1742988]
[1720035082273,0.77471301,60092.0,60091.0,0.1742988]
[1720035082469,0.77471301,60092.0,60091.0,0.1962988]
[1720035082696,0.51011301,60092.0,60091.0,0.3637128]
[1720035082917,0.31041301,60092.0,60091.0,0.6965408]
[1720035083100,0.51011301,60092.0,60091.0,0.3777128]
[1720035083322,0.56941301,60092.0,60091.0,0.1832988]
[1720035083540,0.51011301,60092.0,60091.0,0.1832988]
[1720035083731,0.51011301,60092.0,60091.0,0.2112988]
[1720035083936,0.51011301,60092.0,60091.0,0.1972988]
[1720035084135,0.51011301,60092.0,60091.0,0.1971988]
[1720035084352,0.51011301,60092.0,60091.0,0.3636128]
[1720035084882,0.31041301,60092.0,60091.0,0.3636128]
[1720035085070,0.00091301,60092.0,60091.0,1.0152688]
[1720035085358,0.00091301,60092.0,60091.0,1.0432688]
[1720035085514,0.00091301,60092.0,60091.0,1.0292688]
[1720035085919,0.00091301,60092.0,60091.0,1.0152688]
[1720035086116,0.00091301,60092.0,60091.0,1.0292688]
[1720035086349,0.00091301,60092.0,60091.0,0.6964408]
[1720035086549,0.00091301,60092.0,60091.0,0.7104408]
[1720035086751,0.00091301,60092.0,60091.0,0.6824408]
[1720035086950,0.00091301,60092.0,60091.0,0.6829408]
[1720035087270,0.00091301,60092.0,60091.0,0.7104408]
[1720035087690,0.00091301,60092.0,60091.0,1.0432688]
[1720035087891,0.00091301,60092.0,60091.0,1.3765968]
[1720035088188,0.00091301,60092.0,60091.0,1.3626968]
[1720035088387,0.00091301,60092.0,60091.0,1.3486968]
[1720035088595,0.00091301,60092.0,60091.0,1.3626968]
[1720035088736,0.00091301,60092.0,60091.0,1.3766968]
[1720035088737,0.00101301,60092.0,60091.0,1.3766968]
[1720035088933,0.00101301,60092.0,60091.0,1.3486968]
[1720035089345,0.00101301,60092.0,60091.0,1.3766968]
[1720035089549,0.00101301,60092.0,60091.0,1.6547768]
[1720035089750,0.00101301,60092.0,60091.0,1.9073968]
[1720035089958,0.00101301,60092.0,60091.0,2.6105297]
[1720035090237,0.00101301,60092.0,60091.0,1.9777017]
[1720035090598,0.00101301,60092.0,60091.0,2.0110817]
[1720035090794,0.00111301,60092.0,60091.0,1.7548768]
[1720035090998,0.5239,60104.0,60096.0,0.86538]
[1720035090999,0.08015582,60097.0,60096.0,0.86538]
[1720035091203,0.08015582,60102.0,60096.0,0.2166788]
[1720035091408,0.08015582,60102.0,60100.0,0.1602988]
[1720035091865,0.08015582,60102.0,60101.0,0.023]
[1720035092039,0.08015582,60102.0,60101.0,0.1832988]
[1720035093105,0.08015582,60102.0,60101.0,0.1972988]
[1720035093611,0.08015582,60102.0,60101.0,0.2112988]
[1720035094097,0.08015582,60102.0,60101.0,0.7104578]
[1720035094505,0.08015582,60102.0,60101.0,0.2112988]
[1720035094843,0.08015582,60102.0,60101.0,0.3776848]
[1720035095048,0.08015582,60102.0,60101.0,0.3636848]
[1720035095255,0.08015582,60102.0,60101.0,0.3776848]
[1720035095475,0.08015582,60102.0,60101.0,0.3636848]
[1720035095679,0.08015582,60102.0,60101.0,0.3776848]
[1720035095902,0.08015582,60102.0,60101.0,0.3636848]
[1720035096097,0.7753,60105.0,60102.0,0.166382]
[1720035096301,0.7753,60105.0,60103.0,0.1832988]
[1720035096750,0.1997,60104.0,60103.0,0.1832988]
[1720035097516,0.532456,60104.0,60103.0,0.1742988]
[1720035097717,0.7426291,60104.0,60103.0,0.1742988]
[1720035097917,2.0548411,60104.0,60103.0,0.014]
[1720035098123,2.0548411,60104.0,60103.0,0.0139]
[1720035098328,2.0548411,60104.0,60103.0,0.0138]
[1720035098738,0.1997,60096.0,60092.0,0.00111301]
[1720035098940,0.80426282,60094.0,60093.0,0.1602988]
[1720035099233,1.37276892,60094.0,60093.0,0.1601988]
[1720035100008,1.37276892,60094.0,60091.0,0.0002]
[1720035100009,1.3604291,60092.0,60091.0,0.0002]
[1720035100134,1.3604291,60092.0,60075.0,0.4676]
[1720035100135,0.3766921,60079.0,60075.0,0.4676]
[1720035100344,0.3766921,60079.0,60065.0,0.332969]
[1720035100345,0.24660882,60077.0,60076.0,0.16009103]
[1720035100538,0.43850882,60077.0,60076.0,0.16009103]
[1720035103460,0.1996,60078.0,60077.0,0.023]
[1720035103667,0.1996,60080.0,60077.0,0.023]
[1720035103843,0.1996,60078.0,60077.0,0.023]
[1720035104669,0.1996,60078.0,60077.0,0.037]
[1720035104866,0.3066,60082.0,60077.0,0.097]
[1720035105166,0.3066,60082.0,60078.0,0.3267488]
[1720035105167,0.1996,60082.0,60078.0,0.3267488]
[1720035105493,0.1996,60082.0,60079.0,0.023]
[1720035105739,0.1996,60082.0,60080.0,0.1602988]
[1720035105920,0.1996,60082.0,60081.0,0.023]
[1720035106219,0.1996,60082.0,60081.0,0.1832988]
[1720035106796,0.2006,60082.0,60081.0,0.1832988]
[1720035107118,0.1996,60082.0,60081.0,0.1832988]
[1720035108167,0.1996,60082.0,60081.0,0.1932988]
[1720035108335,0.59481848,60087.0,60081.0,0.1932988]
[1720035108577,0.59481848,60087.0,60082.0,0.1602988]
[1720035108691,0.08015582,60086.0,60083.0,0.023]
[1720035108892,0.08015582,60086.0,60084.0,0.1602988]
[1720035109092,0.08015582,60086.0,60085.0,0.023]
[1720035109332,0.08015582,60086.0,60085.0,0.1832988]
[1720035111443,0.08015582,60086.0,60085.0,0.1882988]
[1720035112003,0.08015582,60086.0,60085.0,0.1912988]
[1720035112362,0.04151848,60090.0,60085.0,0.1912988]
[1720035112548,0.5727,60092.0,60086.0,0.1602988]
[1720035112764,0.5727,60092.0,60087.0,0.023]
[1720035112765,0.61421848,60092.0,60087.0,0.023]
[1720035112961,0.5727,60092.0,60088.0,0.1602988]
[1720035113164,0.3211,60092.0,60089.0,0.023]
[1720035113403,0.36261848,60097.0,60090.0,0.166416]
[1720035113596,0.36261848,60097.0,60091.0,0.1832988]
[1720035113775,0.005,60092.0,60091.0,0.1832988]
[1720035113937,0.36261848,60097.0,60091.0,0.5161268]
[1720035114146,0.36261848,60097.0,60091.0,0.1832988]
[1720035115323,0.001,60092.0,60091.0,0.1942988]
[1720035115659,0.36261848,60097.0,60091.0,0.1942988]
[1720035115660,0.08005582,60094.0,60091.0,0.1942988]
[1720035115871,0.08105582,60094.0,60091.0,0.2032988]
[1720035116080,0.87357548,60092.0,60091.0,0.011]
[1720035116282,1.50627548,60092.0,60091.0,0.011]
[1720035116486,1.83909848,60092.0,60091.0,0.011]
[1720035116686,1.50627548,60092.0,60091.0,0.011]
[1720035117092,1.50727548,60092.0,60091.0,0.022]
[1720035117338,1.85033759,60092.0,60091.0,0.011]
[1720035117652,1.85033759,60092.0,60089.0,0.0001]
[1720035117653,1.51040348,60090.0,60089.0,0.0001]
[1720035117876,2.15347659,60090.0,60089.0,0.0001]
[1720035118073,0.06,60079.0,60078.0,0.4676]
[1720035118216,1.7826113,60079.0,60078.0,0.1602988]
[1720035119457,0.93378348,60077.0,60076.0,0.00083]
[1720035119660,0.93378348,60077.0,60076.0,0.1611288]
[1720035120232,0.88402284,60077.0,60076.0,0.1611288]
[1720035120445,0.94402284,60077.0,60076.0,0.1611288]
[1720035121671,0.93378348,60077.0,60076.0,0.1611288]
[1720035121893,0.8840242,60077.0,60076.0,0.1701288]
[1720035122129,0.94392448,60077.0,60076.0,0.1701288]
[1720035122430,0.93368348,60077.0,60076.0,0.1611288]
[1720035122632,0.87368348,60077.0,60076.0,0.1671288]
[1720035123024,0.88492589,60077.0,60076.0,0.1731288]
[1720035123202,0.88392637,60077.0,60076.0,0.1671288]
[1720035123410,0.87368348,60077.0,60076.0,0.1671288]
[1720035123612,0.87368348,60077.0,60076.0,0.1701288]
[1720035123904,0.87368348,60077.0,60076.0,0.1611288]
[1720035124342,0.04131848,60079.0,60076.0,0.1611288]
[1720035124545,0.04131848,60078.0,60077.0,0.1602988]
[1720035124690,0.04131848,60079.0,60077.0,0.1602988]
[1720035125108,0.04131848,60079.0,60076.0,0.00083]
[1720035125109,1.26648948,60077.0,60076.0,0.00083]
[1720035125309,1.26648948,60077.0,60053.0,0.5309]
[1720035125310,0.04131848,60055.0,60053.0,0.0198466]
[1720035125467,0.04131848,60055.0,60049.0,0.26433]
[1720035125468,0.04131848,60054.0,60049.0,0.00083]
[1720035125680,0.04131848,60054.0,60050.0,0.1602988]
[1720035125885,0.20783548,60054.0,60050.0,0.1602988]
[1720035126096,0.166523,60052.0,60050.0,0.1602988]
[1720035126289,0.86880048,60050.0,60049.0,0.00083]
[1720035126492,1.53491048,60050.0,60049.0,0.00083]
[1720035126692,1.54652665,60050.0,60049.0,0.00083]
[1720035127219,1.60652665,60050.0,60049.0,0.00083]
[1720035127417,1.93958165,60050.0,60049.0,0.00083]
[1720035127621,1.92786548,60050.0,60049.0,0.00083]
[1720035127832,1.93957461,60050.0,60049.0,0.00083]
[1720035128024,1.93957461,60050.0,60049.0,0.00283]
[1720035128263,1.60651961,60050.0,60049.0,0.00283]
[1720035128439,1.26175548,60050.0,60049.0,0.00283]
[1720035129208,1.59481048,60050.0,60049.0,0.00083]
[1720035129609,1.59681048,60050.0,60049.0,0.00083]
[1720035129789,1.59781048,60050.0,60049.0,0.00083]
[1720035130007,1.20475548,60050.0,60049.0,0.00083]
[1720035130210,0.7282929,60050.0,60049.0,0.00083]
[1720035130409,1.0643479,60050.0,60049.0,0.00183]
[1720035130608,1.3914029,60050.0,60049.0,0.00083]
[1720035130789,1.3934029,60050.0,60049.0,0.00083]
[1720035131020,1.3954029,60050.0,60049.0,0.00093]
[1720035131219,1.7864579,60050.0,60049.0,0.00093]
[1720035131628,1.7864579,60050.0,60049.0,0.00393]
[1720035131987,1.7865579,60050.0,60049.0,0.00393]
[1720035132203,1.7865579,60050.0,60049.0,0.00093]
[1720035132396,1.7845579,60050.0,60049.0,0.00093]
[1720035132596,2.0250579,60050.0,60049.0,0.00093]
[1720035133265,2.0270579,60050.0,60049.0,0.00093]
[1720035133622,2.0249579,60050.0,60049.0,0.00093]
[1720035133827,2.0249579,60050.0,60049.0,0.00193]
[1720035134061,2.0309579,60050.0,60049.0,0.00203]
[1720035134258,2.0309579,60050.0,60049.0,0.00103]
[1720035134678,0.9717929,60050.0,60049.0,0.00103]
[1720035134962,1.3048479,60050.0,60049.0,0.00103]
[1720035135111,1.3648479,60050.0,60049.0,0.00103]
[1720035135520,2.0309579,60050.0,60049.0,0.00103]
[1720035135722,2.0359579,60050.0,60049.0,0.00103]
[1720035136513,2.0279579,60050.0,60049.0,0.00103]
[1720035136755,2.0339579,60050.0,60049.0,0.00203]
[1720035136986,2.0309579,60050.0,60049.0,0.00203]
[1720035137567,0.7305479,60050.0,60049.0,0.00103]
[1720035137739,0.2309659,60050.0,60049.0,0.00103]
[1720035138076,0.3994929,60050.0,60049.0,0.00103]
[1720035138285,0.2329659,60050.0,60049.0,0.00103]
[1720035138664,0.2309659,60050.0,60049.0,0.00103]
[1720035138860,0.39940591,60050.0,60049.0,0.00103]
[1720035139042,0.40440591,60050.0,60049.0,0.00203]
[1720035139416,0.23287891,60050.0,60049.0,0.1613288]
[1720035139641,0.23687891,60050.0,60049.0,0.1613288]
[1720035139843,0.00611301,60050.0,60049.0,0.6839198]
[1720035139972,0.00611301,60050.0,60049.0,1.0169808]
[1720035139973,0.00211301,60050.0,60049.0,1.0169808]
[1720035140189,0.00111301,60050.0,60049.0,1.0789808]
[1720035140572,0.00111301,60050.0,60049.0,1.0809808]
[1720035141003,0.00211301,60050.0,60049.0,1.0829808]
[1720035141409,0.00311301,60050.0,60049.0,1.0969808]
[1720035141628,0.00311301,60050.0,60049.0,1.7634218]
[1720035141861,0.00311301,60050.0,60049.0,1.8036218]
[1720035141862,0.00211301,60050.0,60049.0,1.8036218]
[1720035142065,0.00211301,60050.0,60049.0,1.7976218]
[1720035142269,0.00211301,60050.0,60049.0,1.8116218]
[1720035142475,0.00311301,60050.0,60049.0,1.8176218]
[1720035142678,0.00311301,60050.0,60049.0,1.8116218]
[1720035143096,0.00411301,60050.0,60049.0,1.4245608]
[1720035143511,0.00111301,60050.0,60049.0,1.4045608]
[1720035143957,0.00211301,60050.0,60049.0,1.4185608]
[1720035144200,0.04097891,60050.0,60049.0,0.1753288]
[1720035144313,0.20850591,60050.0,60049.0,0.1813288]
[1720035144517,0.04097891,60050.0,60049.0,0.1673288]
[1720035144913,0.04197891,60050.0,60049.0,0.1813288]
[1720035145347,0.04097891,60050.0,60049.0,0.1673288]
[1720035145934,0.20750591,60050.0,60049.0,0.1673288]
[1720035146404,0.54056091,60050.0,60049.0,0.1613288]
[1720035146603,0.53956091,60050.0,60049.0,0.1613288]
[1720035146805,0.54056091,60050.0,60049.0,0.1673288]
[1720035147114,0.54056091,60050.0,60049.0,0.1613288]
[1720035147115,0.53956091,60050.0,60049.0,0.1613288]
[1720035147341,0.20650591,60050.0,60049.0,0.1613288]
[1720035147638,0.20750591,60050.0,60049.0,0.1673288]
[1720035147842,0.20750591,60050.0,60049.0,0.1813288]
[1720035147843,0.20850591,60050.0,60049.0,0.1813288]
[1720035148062,0.93461591,60050.0,60049.0,0.02103]
[1720035148248,0.93361591,60050.0,60049.0,0.00703]
[1720035148652,0.93461591,60050.0,60049.0,0.01803]
[1720035149056,0.87461591,60050.0,60049.0,0.01803]
[1720035150325,0.93461591,60050.0,60049.0,0.01803]
[1720035151124,1.26767091,60050.0,60049.0,0.01803]
[1720035151524,1.83857091,60050.0,60049.0,0.01803]
[1720035152883,1.23961591,60050.0,60049.0,0.01803]
[1720035156084,1.2508664,60050.0,60049.0,0.01803]
[1720035156442,1.25086717,60050.0,60049.0,0.01803]
[1720035157210,1.25086718,60050.0,60049.0,0.01803]
[1720035158121,1.23961591,60050.0,60049.0,0.01803]
[1720035158521,0.93461591,60050.0,60049.0,0.01803]
[1720035158964,0.94567129,60050.0,60049.0,0.01803]
[1720035159391,1.27872629,60050.0,60049.0,0.01803]
[1720035159573,1.27859472,60050.0,60049.0,0.01803]
[1720035160202,1.57859472,60050.0,60049.0,0.01803]
[1720035160344,1.27859472,60050.0,60049.0,0.01803]
[1720035161990,1.27908896,60050.0,60049.0,0.01803]
[1720035162813,1.27923073,60050.0,60049.0,0.01803]
[1720035163167,1.26767091,60050.0,60049.0,0.01803]
[1720035163389,1.27923081,60050.0,60049.0,0.01803]
[1720035164518,1.57923081,60050.0,60049.0,0.01803]
[1720035164916,1.57923081,60050.0,60042.0,0.00834]
[1720035164917,1.5167949,60043.0,60042.0,0.00834]
[1720035165123,0.8987979,60032.0,60031.0,0.00834]
[1720035165326,1.6875128,60032.0,60031.0,0.00834]
[1720035165516,2.0206678,60032.0,60031.0,0.00834]
[1720035165730,2.0091079,60032.0,60031.0,0.00834]
[1720035165909,2.02605874,60032.0,60031.0,0.00834]
[1720035166078,2.02605872,60032.0,60031.0,0.00834]
[1720035166687,0.55554872,60032.0,60031.0,0.00834]
[1720035166889,0.8717529,60032.0,60031.0,0.00834]
[1720035168077,1.2649079,60032.0,60031.0,0.00834]
[1720035168484,1.6010629,60032.0,60031.0,0.00834]
[1720035168716,1.61802505,60032.0,60031.0,0.00834]
[1720035169080,2.49372436,60032.0,60031.0,0.00834]
[1720035169276,2.68262436,60032.0,60031.0,0.00834]
[1720035169393,2.49062436,60032.0,60031.0,0.00834]
[1720035169602,2.49362436,60032.0,60031.0,0.00834]
[1720035170983,1.8980899,60031.0,60030.0,0.00834]
[1720035171155,1.1395519,60029.0,60028.0,0.00833]
[1720035171304,2.33618518,60029.0,60028.0,0.00833]
[1720035171507,2.66935718,60029.0,60028.0,0.00833]
[1720035171711,0.7320599,60025.0,60024.0,0.00834]
[1720035171937,1.48971836,60025.0,60024.0,0.00834]
[1720035172132,2.48930036,60025.0,60024.0,0.00834]
[1720035172335,0.0988659,60017.0,60008.0,0.00835]
[1720035172575,1.44487872,60017.0,60008.0,0.00835]
[1720035172810,2.11125472,60017.0,60008.0,0.00835]
[1720035173012,2.12747461,60017.0,60008.0,0.00835]
[1720035173198,2.44449272,60017.0,60008.0,0.00835]
[1720035173838,2.0310989,60017.0,60008.0,0.00835]
[1720035174618,2.0310989,60017.0,60000.0,0.26665]
[1720035174619,0.0388659,60001.0,60000.0,0.00835]
[1720035174822,0.2654629,59989.0,59988.0,0.00835]
[1720035175040,0.8723509,59989.0,59988.0,0.00835]
[1720035175257,1.2057449,59989.0,59988.0,0.00835]
[1720035176070,0.5389569,59989.0,59988.0,0.00835]
[1720035176295,0.3974629,59989.0,59988.0,0.1686488]
[1720035176477,0.7308569,59989.0,59988.0,0.1686488]
[1720035176676,0.7307569,59989.0,59988.0,0.1686488]
[1720035177370,0.7307569,59989.0,59988.0,0.00835]
[1720035177371,1.3975449,59989.0,59988.0,0.00835]
[1720035177715,1.4464449,59989.0,59988.0,0.00835]
[1720035178326,1.4504449,59989.0,59988.0,0.00835]
[1720035178525,1.1130509,59989.0,59988.0,0.00835]
[1720035178948,1.1130509,59989.0,59988.0,0.01335]
[1720035179372,1.1130509,59989.0,59988.0,0.00835]
[1720035179582,0.7826569,59989.0,59988.0,0.00835]
[1720035180615,0.0417659,59989.0,59988.0,0.1686488]
[1720035180833,0.0416659,59989.0,59988.0,0.1686488]
[1720035181017,0.0029,59989.0,59988.0,0.1686488]
[1720035181245,0.0416659,59989.0,59988.0,0.1686488]
[1720035181444,0.0387659,59989.0,59988.0,0.1686488]
[1720035181638,0.0386659,59989.0,59988.0,0.1686488]
[1720035181963,0.333343,59999.0,59988.0,0.1686488]
[1720035181964,0.0386659,59991.0,59990.0,0.2643]
[1720035182198,0.0385659,59991.0,59990.0,0.4245988]
[1720035182919,0.0385659,59991.0,59990.0,0.5912928]
[1720035183132,0.0385659,59993.0,59991.0,0.333383]
[1720035183344,0.0385659,59993.0,59992.0,0.3269868]
[1720035183571,0.39321,60005.0,59993.0,0.333371]
[1720035183572,0.0385659,59994.0,59993.0,0.333371]
[1720035183772,0.0385659,59994.0,59993.0,0.6603568]
[1720035183970,0.0385659,59994.0,59993.0,0.3269848]
[1720035184766,0.0385659,59994.0,59993.0,0.1602988]
[1720035185377,0.0395659,59994.0,59993.0,0.1692988]
[1720035185784,0.0395659,59994.0,59993.0,0.1602988]
[1720035186185,0.0385659,59994.0,59993.0,0.1602988]
[1720035186585,0.0395659,59994.0,59993.0,0.1602988]
[1720035186760,0.0385659,59994.0,59993.0,0.1602988]
[1720035187250,0.0385659,59994.0,59993.0,0.1692988]
[1720035187251,0.0405659,59994.0,59993.0,0.1692988]
[1720035187766,0.0395659,59994.0,59993.0,0.1602988]
[1720035188017,0.0405659,59994.0,59993.0,0.1692988]
[1720035188563,0.0405659,59994.0,59993.0,0.1602988]
[1720035188564,0.0385659,59994.0,59993.0,0.1602988]
[1720035188768,0.0385659,59995.0,59993.0,0.3269828]
[1720035188982,0.002,59994.0,59993.0,0.009]
[1720035189193,0.001,59994.0,59993.0,0.009]